[Event "GER-ch Youth U10 2019"]
[Site "Willingen"]
[Date "2019.06.13"]
[Round "8.2"]
[White "Sommer, Justus"]
[Black "Grabs, Peter"]
[Result "1/2-1/2"]
[ECO "C15"]
[WhiteElo "1684"]
[BlackElo "1575"]
[Annotator "NA"]
[PlyCount "94"]
[EventDate "2019.06.07"]
[EventType "swiss"]
[EventRounds "11"]
[EventCountry "GER"]
[SourceTitle "playchess.com"]
[Source "ChessBase"]
[SourceQuality "1"]
[TimeControl "40/4500+30:900+30"]

1. e4 {[%emt 0:00:04]} e6 {[%emt 0:00:00]} 2. d4 {[%emt 0:00:09]} d5 {[%emt 0:00:00]} 3. Nc3 {[%emt 0:00:08]} Bb4 {[%emt 0:00:00]} 4. Nge2 {[%emt 0:00:07]} Nf6 {[%emt 0:00:00]} 5. Bg5 {[%emt 0:00:12]} h6 {[%emt 0:05:17]} 6. Bxf6 {[%emt 0:01:35]} Qxf6 {[%emt 0:01:32]} 7. a3 {[%emt 0:01:00]} Bxc3+ {[%emt 0:12:38]} 8. Nxc3 {[%emt 0:00:13]} dxe4 {[%emt 0:00:06]} 9. Nxe4 {[%emt 0:00:18]} Qe7 {[%emt 0:00:09]} 10. Bd3 {[%emt 0:05:32]} O-O {[%emt 0:02:23]} 11. O-O {[%emt 0:00:48]} Nd7 {[%emt 0:01:48]} 12. c3 {[%emt 0:04:28]} b6 {[%emt 0:09:12]} 13. Bc2 {[%emt 0:03:03]} Bb7 {[%emt 0:22:20]} 14. Qd3 {[%emt 0:07:58]} Bxe4 {[%emt 0:03:33]} 15. Qxe4 {[%emt 0:02:41]} Nf6 {[%emt 0:00:31]} 16. Qf3 {[%emt 0:00:19]} Rfd8 {[%emt 0:00:43]} 17. Rfe1 {[%emt 0:02:31]} c5 {[%emt 0:03:17]} 18. Rad1 {[%emt 0:03:12]} cxd4 {[%emt 0:00:47]} 19. Rxd4 {[%emt 0:00:17]} Rxd4 {[%emt 0:01:05]} 20. Qxa8+ {[%emt 0:00:10]} Rd8 {[%emt 0:00:04]} 21. Qf3 {[%emt 0:00:23]} Rd2 {[%emt 0:06:26]} 22. Re2 {[%emt 0:02:40]} Rxe2 {[%emt 0:00:27]} 23. Qxe2 {[%emt 0:00:12]} Qd6 {[%emt 0:00:17]} 24. h3 {[%emt 0:00:15]} Kf8 {[%emt 0:01:25]} 25. Ba4 {[%emt 0:09:40]} Qf4 {[%emt 0:01:42]} 26. Bc6 {[%emt 0:07:18]} Qc1+ {[%emt 0:01:59]} 27. Kh2 {[%emt 0:00:14]} Qf4+ {[%emt 0:00:06]} 28. g3 {[%emt 0:00:09]} Qc7 {[%emt 0:00:57]} 29. Bg2 {[%emt 0:00:26]} Ke7 {[%emt 0:00:15]} 30. c4 {[%emt 0:02:17]} a5 {[%emt 0:03:12]} 31. Qd3 {[%emt 0:08:04]} Qc5 {[%emt 0:01:06]} 32. f4 {[%emt 0:00:29]} Qd6 {[%emt 0:00:55]} 33. Qc3 {[%emt 0:01:09]} Qc7 {[%emt 0:03:27]} 34. b4 {[%emt 0:01:32]} axb4 {[%emt 0:00:30]} 35. axb4 {[%emt 0:00:12]} g6 {[%emt 0:02:31]} 36. c5 {[%emt 0:02:40]} bxc5 {[%emt 0:00:12]} 37. bxc5 {[%emt 0:00:11]} h5 {[%emt 0:00:28]} 38. Qa3 {[%emt 0:01:49]} h4 {[%emt 0:01:15]} 39. c6+ {[%emt 0:00:16]} Ke8 {[%emt 0:00:29]} 40. Qa8+ {[%emt 0:03:23]} Ke7 {[%emt 0:00:10]} 41. Qb7 {[%emt 0:24:45]} hxg3+ {[%emt 0:15:58]} 42. Kxg3 {[%emt 0:00:26]} Nh5+ {[%emt 0:01:03]} 43. Kf3 {[%emt 0:00:40]} Kd8 {[%emt 0:00:00]} 44. Qxc7+ {[%emt 0:00:00]} Kxc7 {[%emt 0:00:00]} 45. Ke3 {[%emt 0:00:00]} Kd6 {[%emt 0:00:00]} 46. Bf3 {[%emt 0:00:00]} Nf6 {[%emt 0:00:22]} 47. Bg2 {[%emt 0:00:00]} Nd5+ {[%emt 0:00:22] normal} 1/2-1/2

[Event "GER-ch Youth U10 2019"]
[Site "Willingen"]
[Date "2019.06.13"]
[Round "8.3"]
[White "Besou, Hussain"]
[Black "Huber, Benedikt"]
[Result "1-0"]
[ECO "C72"]
[WhiteElo "1785"]
[BlackElo "1441"]
[Annotator "NA"]
[PlyCount "95"]
[EventDate "2019.06.07"]
[EventType "swiss"]
[EventRounds "11"]
[EventCountry "GER"]
[SourceTitle "playchess.com"]
[Source "ChessBase"]
[SourceQuality "1"]
[TimeControl "40/4500+30:900+30"]

1. e4 {[%emt 0:00:00]} e5 {[%emt 0:00:00]} 2. Nf3 {[%emt 0:00:00]} Nc6 {[%emt 0:00:00]} 3. Bb5 {[%emt 0:00:00]} a6 {[%emt 0:00:00]} 4. Ba4 {[%emt 0:00:00]} d6 {[%emt 0:00:00]} 5. O-O {[%emt 0:00:31]} Bg4 {[%emt 0:00:11]} 6. h3 {[%emt 0:00:29]} h5 {[%emt 0:00:49]} 7. c3 {[%emt 0:00:26]} Qf6 {[%emt 0:02:07]} 8. d3 {[%emt 0:04:19]} Bxf3 {[%emt 0:00:33]} 9. Qxf3 {[%emt 0:00:06]} Qxf3 {[%emt 0:00:51]} 10. gxf3 {[%emt 0:00:05]} f6 {[%emt 0:01:12]} 11. f4 {[%emt 0:01:06]} exf4 {[%emt 0:01:41]} 12. Bxf4 {[%emt 0:00:12]} g5 {[%emt 0:00:38]} 13. Be3 {[%emt 0:00:20]} Nge7 {[%emt 0:03:44]} 14. f4 {[%emt 0:01:40]} Bh6 {[%emt 0:07:01]} 15. Nd2 {[%emt 0:09:55]} Rg8 {[%emt 0:01:52]} 16. f5 {[%emt 0:00:49]} Kd7 {[%emt 0:02:26]} 17. Bb3 {[%emt 0:00:47]} Rh8 {[%emt 0:04:23]} 18. Be6+ {[%emt 0:01:19]} Ke8 {[%emt 0:01:08]} 19. d4 {[%emt 0:01:35]} g4 {[%emt 0:03:27]} 20. Bxh6 {[%emt 0:00:08]} Rxh6 {[%emt 0:00:15]} 21. hxg4 {[%emt 0:00:13]} hxg4 {[%emt 0:00:59]} 22. Rf4 {[%emt 0:00:17]} Nd8 {[%emt 0:08:05]} 23. Raf1 {[%emt 0:00:44]} g3 {[%emt 0:02:59]} 24. Nf3 {[%emt 0:05:13]} Nxe6 {[%emt 0:02:54]} 25. fxe6 {[%emt 0:02:27]} d5 {[%emt 0:04:27]} 26. e5 {[%emt 0:02:33]} g2 {[%emt 0:03:10]} 27. Kxg2 {[%emt 0:00:29]} Rg6+ {[%emt 0:01:06]} 28. Kh3 {[%emt 0:01:18]} fxe5 {[%emt 0:07:15]} 29. Nxe5 {[%emt 0:00:13]} Rh6+ {[%emt 0:01:35]} 30. Kg2 {[%emt 0:01:28]} Ng6 {[%emt 0:01:30]} 31. Rf6 {[%emt 0:00:32]} Nh4+ {[%emt 0:01:35]} 32. Kg3 {[%emt 0:00:17]} Rh8 {[%emt 0:01:54]} 33. R6f4 {[%emt 0:00:27]} Ke7 {[%emt 0:03:11]} 34. Rxh4 {[%emt 0:00:49]} Rag8+ {[%emt 0:00:49]} 35. Kh3 {[%emt 0:00:30]} Kxe6 {[%emt 0:00:51]} 36. Rxh8 {[%emt 0:00:42]} Rxh8+ {[%emt 0:00:08]} 37. Kg4 {[%emt 0:00:19]} Rg8+ {[%emt 0:00:13]} 38. Kh5 {[%emt 0:00:18]} Rg2 {[%emt 0:00:58]} 39. Nd3 {[%emt 0:00:41]} Kd6 {[%emt 0:01:08]} 40. Re1 {[%emt 0:02:57]} Rd2 {[%emt 0:00:31]} 41. Nc5 {[%emt 0:15:32]} Kc6 {[%emt 0:16:20]} 42. a4 {[%emt 0:03:19]} Kb6 {[%emt 0:01:02]} 43. b4 {[%emt 0:00:48]} Rh2+ {[%emt 0:00:50]} 44. Kg5 {[%emt 0:00:53]} Rh3 {[%emt 0:00:45]} 45. Re6+ {[%emt 0:00:55]} Ka7 {[%emt 0:00:07]} 46. Re7 {[%emt 0:00:21]} Rh8 {[%emt 0:01:59]} 47. Rxc7 {[%emt 0:00:15]} Rb8 {[%emt 0:00:16]} 48. a5 {[%emt 0:00:25] normal} 1-0

[Event "GER-ch Youth U10 2019"]
[Site "Willingen"]
[Date "2019.06.13"]
[Round "8.4"]
[White "Freude, Paul"]
[Black "Sauer, Tim"]
[Result "0-1"]
[ECO "B13"]
[WhiteElo "1713"]
[BlackElo "1553"]
[Annotator "NA"]
[PlyCount "93"]
[EventDate "2019.06.07"]
[EventType "swiss"]
[EventRounds "11"]
[EventCountry "GER"]
[SourceTitle "playchess.com"]
[Source "ChessBase"]
[SourceQuality "1"]
[TimeControl "40/4500+30:900+30"]

1. e4 {[%emt 0:00:00]} c6 {[%emt 0:00:00]} 2. d4 {[%emt 0:00:00]} d5 {[%emt 0:00:00]} 3. exd5 {[%emt 0:00:00]} cxd5 {[%emt 0:00:00]} 4. Bd3 {[%emt 0:00:03]} Nc6 {[%emt 0:00:00]} 5. c3 {[%emt 0:00:08]} Nf6 {[%emt 0:00:00]} 6. Bf4 {[%emt 0:00:12]} g6 {[%emt 0:00:15]} 7. Ne2 {[%emt 0:02:06]} Bg7 {[%emt 0:00:11]} 8. O-O {[%emt 0:00:18]} O-O {[%emt 0:00:09]} 9. Nd2 {[%emt 0:01:25]} Nh5 {[%emt 0:04:30]} 10. Bg3 {[%emt 0:02:18]} Nxg3 {[%emt 0:01:37]} 11. fxg3 {[%emt 0:00:45]} e5 {[%emt 0:01:47]} 12. dxe5 {[%emt 0:01:07]} Nxe5 {[%emt 0:00:38]} 13. Nb3 {[%emt 0:01:19]} Ng4 {[%emt 0:02:26]} 14. Qd2 {[%emt 0:05:42]} b6 {[%emt 0:15:25]} 15. h3 {[%emt 0:02:44]} Ne5 {[%emt 0:03:09]} 16. Bc2 {[%emt 0:02:52]} Nc4 {[%emt 0:00:41]} 17. Qc1 {[%emt 0:03:26]} Re8 {[%emt 0:06:21]} 18. Nbd4 {[%emt 0:02:12]} Bb7 {[%emt 0:02:30]} 19. Rf3 {[%emt 0:04:53]} Qd7 {[%emt 0:06:15]} 20. b3 {[%emt 0:01:36]} Nd6 {[%emt 0:02:11]} 21. Re3 {[%emt 0:02:57]} Ne4 {[%emt 0:01:13]} 22. Bxe4 {[%emt 0:04:47]} dxe4 {[%emt 0:02:08]} 23. Qc2 {[%emt 0:01:58]} Rac8 {[%emt 0:02:57]} 24. Rd1 {[%emt 0:00:45]} Qc7 {[%emt 0:02:12]} 25. Nb5 {[%emt 0:03:53]} Qc5 {[%emt 0:01:52]} 26. Nbd4 {[%emt 0:01:58]} Rcd8 {[%emt 0:04:00]} 27. Qb2 {[%emt 0:05:55]} Ba6 {[%emt 0:08:25]} 28. b4 {[%emt 0:03:08]} Qc4 {[%emt 0:06:29]} 29. Qb3 {[%emt 0:02:15]} Qxb3 {[%emt 0:01:17]} 30. axb3 {[%emt 0:00:14]} Bxe2 31. Rxe2 {[%emt 0:00:09]} Bxd4+ {[%emt 0:02:52]} 32. Rxd4 {[%emt 0:00:20]} Rxd4 {[%emt 0:00:06]} 33. cxd4 {[%emt 0:00:12]} f5 {[%emt 0:00:46]} 34. Rc2 {[%emt 0:02:17]} Rd8 {[%emt 0:02:29]} 35. Rc4 {[%emt 0:01:24]} a6 {[%emt 0:03:33]} 36. Rc6 {[%emt 0:01:35]} b5 {[%emt 0:00:27]} 37. Rxa6 {[%emt 0:00:28]} Rxd4 {[%emt 0:00:09]} 38. Kf2 {[%emt 0:00:24]} Rxb4 {[%emt 0:00:09]} 39. Ra3 {[%emt 0:00:11]} Kf7 {[%emt 0:00:41]} 40. Ke3 {[%emt 0:00:42]} Ke6 {[%emt 0:01:43]} 41. Kf4 {[%emt 0:16:44]} Kd5 {[%emt 0:18:08]} 42. Ke3 {[%emt 0:00:37]} Ke5 {[%emt 0:00:00]} 43. g4 {[%emt 0:00:00]} f4+ {[%emt 0:00:00]} 44. Ke2 {[%emt 0:00:00]} e3 {[%emt 0:00:00]} 45. Ra8 {[%emt 0:00:00]} Rxb3 {[%emt 0:00:00]} 46. Re8+ {[%emt 0:00:00]} Kf6 {[%emt 0:00:00]} 47. Rf8+ {[%emt 0:00:00] normal} 0-1

[Event "GER-ch Youth U10 2019"]
[Site "Willingen"]
[Date "2019.06.13"]
[Round "8.5"]
[White "Navarro Jahnke, Leo"]
[Black "Dordevic, Tom"]
[Result "1-0"]
[ECO "B23"]
[WhiteElo "1334"]
[BlackElo "1158"]
[Annotator "NA RC"]
[PlyCount "45"]
[EventDate "2019.06.07"]
[EventType "swiss"]
[EventRounds "11"]
[EventCountry "GER"]
[SourceTitle "playchess.com"]
[Source "ChessBase"]
[SourceQuality "1"]
[TimeControl "40/4500+30:900+30"]

1. e4 {[%emt 0:00:00]} c5 {[%emt 0:00:00]} 2. Nc3 {[%emt 0:00:00]} Nc6 {[%emt 0:00:05]} 3. f4 {[%emt 0:00:00]} g6 {[%emt 0:00:23]} 4. Bc4 {[%emt 0:00:12]} Bg7 {[%emt 0:00:49]} 5. Nf3 {[%emt 0:00:16]} d6 {[%emt 0:00:30]} 6. d3 {[%emt 0:00:17]} Nf6 {[%emt 0:00:37]} 7. O-O {[%emt 0:00:17]} O-O {[%emt 0:00:50]} 8. Qe1 {[%emt 0:00:16]} a6 {[%emt 0:01:18]} 9. f5 {[%emt 0:00:15]} b5 {[%emt 0:00:31]} 10. Bb3 {[%emt 0:00:17]} Bb7 {[%emt 0:00:53]} 11. Qh4 {[%emt 0:01:10]} Re8 {[%emt 0:03:24]} 12. Ng5 {[%emt 0:02:18]} Rf8 {[%emt 0:04:54]} 13. fxg6 {[%emt 0:00:18]} h6 {[%emt 0:02:23]} 14. Nxf7 {[%emt 0:00:21]} Rxf7 {[%emt 0:01:33]} 15. Bxf7+ {[%emt 0:00:07]} Kf8 {[%emt 0:00:12]} 16. Bxh6 {[%emt 0:00:09]} Ne5 {[%emt 0:00:28]} 17. Rxf6 {[%emt 0:02:03]} exf6 {[%emt 0:00:25]} 18. Bxg7+ {[%emt 0:00:10]} Kxg7 {[%emt 0:00:53]} 19. Qh7+ {[%emt 0:00:05]} Kf8 {[%emt 0:00:05]} 20. g7+ {[%emt 0:00:01]} Ke7 {[%emt 0:02:28]} 21. g8=Q {[%emt 0:00:11]} Qxg8 {[%emt 0:00:21]} 22. Bxg8+ {[%emt 0:00:03]} Kf8 {[%emt 0:00:11]} 23. Qxb7 {[%emt 0:00:14] normal} 1-0

[Event "GER-ch Youth U10 2019"]
[Site "Willingen"]
[Date "2019.06.13"]
[Round "8.6"]
[White "Torosyan, Bagrat"]
[Black "Xue, Luka"]
[Result "1-0"]
[ECO "C67"]
[WhiteElo "1444"]
[BlackElo "1429"]
[Annotator "NA"]
[PlyCount "127"]
[EventDate "2019.06.07"]
[EventType "swiss"]
[EventRounds "11"]
[EventCountry "GER"]
[SourceTitle "playchess.com"]
[Source "ChessBase"]
[SourceQuality "1"]
[TimeControl "40/4500+30:900+30"]

1. e4 {[%emt 0:00:00]} e5 {[%emt 0:00:00]} 2. Nf3 {[%emt 0:00:00]} Nc6 {[%emt 0:00:00]} 3. Bb5 {[%emt 0:00:00]} Nf6 {[%emt 0:00:00]} 4. O-O {[%emt 0:00:00]} Nxe4 {[%emt 0:00:05]} 5. d4 {[%emt 0:00:00]} Nd6 {[%emt 0:00:13]} 6. Bxc6 {[%emt 0:00:13]} dxc6 {[%emt 0:00:11]} 7. dxe5 {[%emt 0:00:05]} Nf5 {[%emt 0:00:14]} 8. Qxd8+ {[%emt 0:00:06]} Kxd8 {[%emt 0:00:11]} 9. Nc3 {[%emt 0:00:08]} Bd7 {[%emt 0:00:25]} 10. Rd1 {[%emt 0:00:16]} Kc8 {[%emt 0:00:23]} 11. Ng5 {[%emt 0:00:24]} Be8 {[%emt 0:00:26]} 12. g4 {[%emt 0:00:37]} Ne7 {[%emt 0:00:36]} 13. f4 {[%emt 0:00:18]} h6 {[%emt 0:01:11]} 14. Nf3 {[%emt 0:00:23]} g6 {[%emt 0:01:19]} 15. Ne4 {[%emt 0:00:45]} Nd5 {[%emt 0:01:29]} 16. c4 {[%emt 0:00:24]} Nb6 {[%emt 0:02:17]} 17. Nf6 {[%emt 0:00:52]} Bc5+ {[%emt 0:00:49]} 18. Kg2 {[%emt 0:05:14]} Nxc4 {[%emt 0:00:57]} 19. b3 {[%emt 0:00:21]} Ne3+ {[%emt 0:00:54]} 20. Bxe3 {[%emt 0:00:07]} Bxe3 {[%emt 0:00:10]} 21. Rd3 {[%emt 0:00:11]} Bxf4 {[%emt 0:01:45]} 22. Rad1 {[%emt 0:00:10]} b6 {[%emt 0:02:04]} 23. Rd8+ {[%emt 0:00:11]} Kb7 {[%emt 0:00:10]} 24. Rxa8 {[%emt 0:00:06]} Kxa8 {[%emt 0:00:10]} 25. Rd8+ {[%emt 0:00:07]} Kb7 {[%emt 0:00:27]} 26. Rxe8 {[%emt 0:00:06]} Rxe8 {[%emt 0:00:29]} 27. Nxe8 {[%emt 0:00:06]} a5 {[%emt 0:03:09]} 28. h4 {[%emt 0:00:23]} c5 {[%emt 0:02:42]} 29. h5 {[%emt 0:00:44]} gxh5 {[%emt 0:01:39]} 30. gxh5 {[%emt 0:00:14]} b5 {[%emt 0:00:29]} 31. Kf2 {[%emt 0:00:11]} a4 {[%emt 0:09:47]} 32. Nf6 {[%emt 0:04:49]} b4 {[%emt 0:02:15]} 33. Ke2 {[%emt 0:00:41]} c4 {[%emt 0:02:18]} 34. bxa4 {[%emt 0:01:27]} c6 {[%emt 0:03:58]} 35. Kd1 {[%emt 0:01:37]} Ka6 {[%emt 0:00:52]} 36. Kc2 {[%emt 0:01:16]} Ka5 {[%emt 0:00:32]} 37. Nd4 {[%emt 0:05:29]} c5 {[%emt 0:00:57]} 38. Nf5 {[%emt 0:01:13]} Kxa4 {[%emt 0:02:23]} 39. Ne4 {[%emt 0:02:44]} b3+ {[%emt 0:01:31]} 40. axb3+ {[%emt 0:01:21]} cxb3+ {[%emt 0:00:13]} 41. Kb1 {[%emt 0:15:09]} c4 {[%emt 0:16:25]} 42. Nfd6 {[%emt 0:00:36]} Bxe5 {[%emt 0:04:53]} 43. Nxc4 {[%emt 0:01:34]} Bf4 {[%emt 0:00:41]} 44. Ncd6 {[%emt 0:01:14]} Kb4 {[%emt 0:00:52]} 45. Nxf7 {[%emt 0:00:16]} Kc4 {[%emt 0:00:25]} 46. Nf6 {[%emt 0:03:34]} Kd4 {[%emt 0:04:57]} 47. Kb2 {[%emt 0:00:05]} Ke3 48. Kxb3 Kf3 {[%emt 0:02:18]} 49. Kc4 {[%emt 0:00:39]} Kg3 {[%emt 0:00:16]} 50. Kd5 {[%emt 0:00:08]} Bd2 {[%emt 0:01:26]} 51. Ke4 {[%emt 0:01:52]} Bc3 {[%emt 0:02:06]} 52. Nd5 {[%emt 0:02:15]} Kh4 {[%emt 0:01:10]} 53. Nxc3 {[%emt 0:35:29]} Kxh5 {[%emt 0:00:55]} 54. Kf5 {[%emt 0:03:30]} Kh4 {[%emt 0:00:38]} 55. Kf4 {[%emt 0:00:43]} Kh5 {[%emt 0:00:46]} 56. Nh8 {[%emt 0:00:09]} Kh4 {[%emt 0:00:18]} 57. Ng6+ {[%emt 0:00:25]} Kh5 {[%emt 0:00:19]} 58. Ne5 {[%emt 0:00:28]} Kh4 {[%emt 0:00:16]} 59. Ne4 {[%emt 0:03:56]} Kh5 {[%emt 0:02:14]} 60. Ng3+ {[%emt 0:00:40]} Kh4 {[%emt 0:00:28]} 61. Ng6+ {[%emt 0:01:46]} Kh3 {[%emt 0:00:30]} 62. Kf3 {[%emt 0:00:06]} h5 {[%emt 0:03:26]} 63. Nf1 {[%emt 0:01:01]} h4 64. Nf4# {normal} 1-0

[Event "GER-ch Youth U10 2019"]
[Site "Willingen"]
[Date "2019.06.13"]
[Round "8.7"]
[White "Fietz, Nils"]
[Black "Haubold, Christian Lucas"]
[Result "1/2-1/2"]
[ECO "A02"]
[WhiteElo "1677"]
[BlackElo "1387"]
[Annotator "NA"]
[PlyCount "78"]
[EventDate "2019.06.07"]
[EventType "swiss"]
[EventRounds "11"]
[EventCountry "GER"]
[SourceTitle "playchess.com"]
[Source "ChessBase"]
[SourceQuality "1"]
[TimeControl "40/4500+30:900+30"]

1. f4 {[%emt 0:00:00]} c5 {[%emt 0:00:00]} 2. Nf3 {[%emt 0:00:00]} d5 {[%emt 0:01:21]} 3. g3 {[%emt 0:00:00]} Nf6 {[%emt 0:00:27]} 4. Bg2 {[%emt 0:00:16]} e6 {[%emt 0:01:00]} 5. O-O {[%emt 0:01:03]} Bd6 {[%emt 0:00:34]} 6. d3 {[%emt 0:00:30]} O-O {[%emt 0:05:14]} 7. c3 {[%emt 0:01:37]} Nc6 {[%emt 0:01:44]} 8. Na3 {[%emt 0:01:11]} a6 {[%emt 0:01:34]} 9. Nc2 {[%emt 0:00:43]} Bd7 {[%emt 0:00:44]} 10. Qe1 {[%emt 0:03:18]} Qc7 {[%emt 0:06:56]} 11. e4 {[%emt 0:01:50]} dxe4 {[%emt 0:00:21]} 12. dxe4 {[%emt 0:00:08]} e5 {[%emt 0:10:58]} 13. f5 {[%emt 0:00:52]} Nh5 {[%emt 0:09:13]} 14. Qe2 {[%emt 0:13:04]} g6 {[%emt 0:02:44]} 15. Nh4 {[%emt 0:01:28]} Be7 {[%emt 0:02:28]} 16. Bf3 {[%emt 0:04:30]} Ng7 {[%emt 0:05:42]} 17. Bh6 {[%emt 0:04:34]} Bxh4 {[%emt 0:02:38]} 18. gxh4 {[%emt 0:00:10]} Rfd8 {[%emt 0:05:28]} 19. h5 {[%emt 0:04:18]} Be8 {[%emt 0:05:00]} 20. hxg6 {[%emt 0:02:02]} fxg6 {[%emt 0:00:10]} 21. Bg2 {[%emt 0:07:14]} Bf7 {[%emt 0:01:38]} 22. Qf2 {[%emt 0:04:35]} Na5 {[%emt 0:01:26]} 23. b3 {[%emt 0:00:48]} Rd3 {[%emt 0:01:16]} 24. c4 {[%emt 0:01:18]} Rad8 {[%emt 0:00:39]} 25. Be3 {[%emt 0:03:10]} b6 {[%emt 0:02:29]} 26. Ne1 {[%emt 0:00:49]} R3d6 {[%emt 0:00:49]} 27. Qg3 {[%emt 0:01:23]} Rd1 {[%emt 0:00:52]} 28. Rxd1 {[%emt 0:00:35]} Rxd1 {[%emt 0:00:11]} 29. Nf3 {[%emt 0:00:17]} Rxf1+ {[%emt 0:00:15]} 30. Bxf1 {[%emt 0:00:44]} Nc6 {[%emt 0:00:07]} 31. Bh3 {[%emt 0:01:16]} Qd6 {[%emt 0:01:00]} 32. Ng5 {[%emt 0:00:52]} Nd4 {[%emt 0:00:46]} 33. Nxf7 {[%emt 0:01:32]} Kxf7 {[%emt 0:00:09]} 34. Qf2 {[%emt 0:00:53]} Qf6 {[%emt 0:00:37]} 35. fxg6+ {[%emt 0:00:37]} hxg6 {[%emt 0:00:24]} 36. Qxf6+ {[%emt 0:01:29]} Kxf6 {[%emt 0:00:07]} 37. Kf2 {[%emt 0:00:13]} Nc2 {[%emt 0:00:59]} 38. Bg4 {[%emt 0:03:31]} Nxe3 {[%emt 0:01:06]} 39. Kxe3 {[%emt 0:00:04]} Nh5 {[%emt 0:00:14] normal} 1/2-1/2

[Event "GER-ch Youth U10 2019"]
[Site "Willingen"]
[Date "2019.06.13"]
[Round "8.8"]
[White "Arora, Abhiraaj"]
[Black "Ruddat, Jarne"]
[Result "1-0"]
[ECO "D26"]
[WhiteElo "1454"]
[BlackElo "1350"]
[Annotator "NA"]
[PlyCount "43"]
[EventDate "2019.06.07"]
[EventType "swiss"]
[EventRounds "11"]
[EventCountry "GER"]
[SourceTitle "playchess.com"]
[Source "ChessBase"]
[SourceQuality "1"]
[TimeControl "40/4500+30:900+30"]

1. d4 {[%emt 0:00:00]} d5 {[%emt 0:00:00]} 2. c4 {[%emt 0:00:00]} dxc4 {[%emt 0:00:00]} 3. e3 {[%emt 0:00:00]} e6 {[%emt 0:00:51]} 4. Bxc4 {[%emt 0:00:00]} Nf6 {[%emt 0:00:40]} 5. Nf3 {[%emt 0:00:03]} c5 {[%emt 0:00:59]} 6. O-O {[%emt 0:00:35]} cxd4 {[%emt 0:02:17]} 7. exd4 {[%emt 0:00:19]} Be7 {[%emt 0:00:48]} 8. Nc3 {[%emt 0:02:12]} O-O {[%emt 0:01:48]} 9. Bg5 {[%emt 0:03:30]} h6 {[%emt 0:02:43]} 10. Bh4 {[%emt 0:05:07]} Nc6 {[%emt 0:00:42]} 11. Qd2 {[%emt 0:02:06]} Qd7 {[%emt 0:08:17]} 12. Rad1 {[%emt 0:01:10]} Bb4 {[%emt 0:00:45]} 13. Bxf6 {[%emt 0:00:25]} Na5 {[%emt 0:07:41]} 14. Bd3 {[%emt 0:01:04]} gxf6 {[%emt 0:01:03]} 15. Qxh6 {[%emt 0:00:10]} Rd8 {[%emt 0:01:14]} 16. Ne4 {[%emt 0:02:09]} Qe7 {[%emt 0:04:03]} 17. Nxf6+ Qxf6 {[%emt 0:02:01]} 18. Qxf6 {[%emt 0:00:23]} Rd7 {[%emt 0:00:16]} 19. Ne5 {[%emt 0:00:52]} Be7 {[%emt 0:00:53]} 20. Bh7+ {[%emt 0:00:37]} Kxh7 {[%emt 0:00:18]} 21. Qxf7+ {[%emt 0:00:09]} Kh8 {[%emt 0:00:04]} 22. Ng6# {normal} 1-0

[Event "GER-ch Youth U10 2019"]
[Site "Willingen"]
[Date "2019.06.13"]
[Round "8.9"]
[White "Haubold, Sebastian Marcel"]
[Black "Meng, Yuxuan"]
[Result "1-0"]
[ECO "C63"]
[WhiteElo "1506"]
[BlackElo "1288"]
[Annotator "NA"]
[PlyCount "41"]
[EventDate "2019.06.07"]
[EventType "swiss"]
[EventRounds "11"]
[EventCountry "GER"]
[SourceTitle "playchess.com"]
[Source "ChessBase"]
[SourceQuality "1"]
[TimeControl "40/4500+30:900+30"]

1. e4 {[%emt 0:00:00]} e5 {[%emt 0:00:00]} 2. Nf3 {[%emt 0:00:00]} Nc6 {[%emt 0:00:00]} 3. Bb5 {[%emt 0:00:15]} f5 {[%emt 0:00:00]} 4. Bxc6 {[%emt 0:02:14]} dxc6 {[%emt 0:00:05]} 5. O-O {[%emt 0:00:34]} Bd6 {[%emt 0:00:18]} 6. Nc3 {[%emt 0:01:01]} Nf6 {[%emt 0:00:26]} 7. d4 {[%emt 0:01:55]} fxe4 {[%emt 0:15:56]} 8. Nxe5 {[%emt 0:02:38]} Bf5 {[%emt 0:01:34]} 9. Bf4 {[%emt 0:06:55]} Qe7 {[%emt 0:02:31]} 10. Qe2 {[%emt 0:05:22]} O-O-O {[%emt 0:02:09]} 11. a4 {[%emt 0:05:42]} Rhg8 {[%emt 0:02:33]} 12. a5 {[%emt 0:01:26]} c5 {[%emt 0:03:04]} 13. a6 {[%emt 0:01:28]} c6 {[%emt 0:13:33]} 14. axb7+ {[%emt 0:03:29]} Qxb7 {[%emt 0:01:09]} 15. Qc4 {[%emt 0:02:43]} g5 {[%emt 0:04:15]} 16. Bg3 {[%emt 0:04:41]} Rge8 {[%emt 0:00:36]} 17. Nf7 {[%emt 0:03:20]} Be6 {[%emt 0:06:22]} 18. Nxd8 {[%emt 0:02:12]} Bxc4 {[%emt 0:00:09]} 19. Nxb7 {[%emt 0:00:04]} Bxg3 {[%emt 0:01:15]} 20. fxg3 {[%emt 0:00:14]} Kxb7 {[%emt 0:00:37]} 21. Rxf6 {[%emt 0:00:09] normal} 1-0

[Event "GER-ch Youth U10 2019"]
[Site "Willingen"]
[Date "2019.06.14"]
[Round "9.1"]
[White "Helms, Finn"]
[Black "Navarro Jahnke, Leo"]
[Result "0-1"]
[ECO "A45"]
[WhiteElo "1773"]
[BlackElo "1334"]
[Annotator "NA"]
[PlyCount "65"]
[EventDate "2019.06.07"]
[EventType "swiss"]
[EventRounds "11"]
[EventCountry "GER"]
[SourceTitle "playchess.com"]
[Source "ChessBase"]
[SourceQuality "1"]
[TimeControl "40/4500+30:900+30"]

1. d4 {[%emt 0:00:00]} Nf6 {[%emt 0:00:00]} 2. Bf4 {[%emt 0:00:00]} g6 {[%emt 0:00:00]} 3. e3 {[%emt 0:00:00]} Bg7 {[%emt 0:00:00]} 4. Nc3 {[%emt 0:00:00]} d5 {[%emt 0:00:03]} 5. h4 {[%emt 0:00:04]} h5 {[%emt 0:00:06]} 6. Bd3 {[%emt 0:00:11]} O-O {[%emt 0:00:40]} 7. Nf3 {[%emt 0:00:13]} c5 {[%emt 0:00:18]} 8. Ne2 {[%emt 0:00:31]} c4 {[%emt 0:00:13]} 9. O-O {[%emt 0:00:43]} cxd3 {[%emt 0:00:04]} 10. cxd3 {[%emt 0:00:42]} Nc6 {[%emt 0:00:27]} 11. Rc1 {[%emt 0:00:21]} Bg4 {[%emt 0:00:19]} 12. Ne5 {[%emt 0:00:36]} Nxe5 {[%emt 0:01:10]} 13. Bxe5 {[%emt 0:01:22]} Rc8 {[%emt 0:00:41]} 14. f3 {[%emt 0:00:36]} Bd7 {[%emt 0:00:56]} 15. Nc3 {[%emt 0:00:25]} Bc6 {[%emt 0:03:12]} 16. e4 {[%emt 0:00:33]} Ne8 {[%emt 0:01:06]} 17. Bxg7 {[%emt 0:01:55]} Nxg7 {[%emt 0:00:28]} 18. e5 {[%emt 0:02:45]} e6 {[%emt 0:00:33]} 19. Qe1 {[%emt 0:06:07]} Nf5 {[%emt 0:00:47]} 20. g4 {[%emt 0:01:18]} hxg4 21. fxg4 {[%emt 0:00:08]} Nxd4 {[%emt 0:02:04]} 22. Rf4 {[%emt 0:01:29]} Qb6 {[%emt 0:01:25]} 23. Qf2 {[%emt 0:00:25]} Nb5 {[%emt 0:00:51]} 24. d4 {[%emt 0:00:21]} Nxc3 {[%emt 0:00:20]} 25. bxc3 {[%emt 0:00:08]} Qd8 {[%emt 0:01:51]} 26. g5 {[%emt 0:01:03]} Kg7 {[%emt 0:00:33]} 27. Re1 {[%emt 0:00:34]} Rc7 {[%emt 0:00:37]} 28. Re3 {[%emt 0:00:22]} Rh8 {[%emt 0:00:34]} 29. Rh3 {[%emt 0:00:21]} Rh5 {[%emt 0:00:40]} 30. Rf6 {[%emt 0:00:40]} Qf8 {[%emt 0:03:21]} 31. Rhf3 {[%emt 0:00:20]} Be8 {[%emt 0:00:09]} 32. Rxg6+ {[%emt 0:00:35]} Kxg6 {[%emt 0:00:28]} 33. Rf6+ {[%emt 0:00:06] normal} 0-1